Cogmind - Beta 16 @@@ ROGUE MODE // 2025.11.06 @ 13:34:46 Player: jumpy Result: Destroyed by H-88 Terminator with KE Penetrator Performance ------------- Evolutions (9) 4500 Regions Visited (23) 4600 Robots Destroyed (232) 1160 Value Destroyed (12613) 12613 Prototype IDs (10) 200 Alien Tech Used (0) 0 Bonus (7861) 7861 TOTAL SCORE: 30934 Bonus ------- High Alert Combat Kills 1232 Follower Combat Kills 743 Entered Garrisons 2000 Used RIF Installer 4000 Friendly Fire -114 Cogmind --------- Core Integrity 0/1600 Matter 300/300 Energy 100/100 System Corruption 9% Temperature Cool (0) Movement Core (50) Location -1/Access Parts ------- > --- POWER (2) -------- (None) > --- PROPULSION (6) --- (None) > --- UTILITY (13) ----- (None) > --- WEAPON (4) ------- (None) > --- INVENTORY (5) ---- Matter Compressor (250) Advanced Sensor Array Relay Coupler [NC] (35) Plasma Cutter Peak State ------------ > --- POWER ------------ Light Antimatter Reactor Light Quantum Reactor > --- PROPULSION ------- Myomer Leg Myomer Leg Advanced Myomer Leg Experimental Flexi-carbon Leg Centrium Leg High-density Centrium Leg > --- UTILITY ---------- Advanced Heat Sink Advanced Heat Sink Advanced Heat Sink High-capacity Storage Unit Advanced Signal Interpreter Improved Targeting Computer Advanced Targeting Computer Core Analyzer Phase Shifter Hardened Heavy Armor Plating Advanced Shield Generator Relay Coupler [Sentry] > --- WEAPON ----------- Enhanced Nova Cannon Enhanced Hardcell Cannon Enhanced Hardcell Cannon Improved Remote Datajack > --- INVENTORY -------- Myomer Leg Armored Huge Wheel High-capacity Storage Unit Matter Compressor Advanced Sensor Array Transmission Jammer Relay Coupler [NC] Relay Coupler [Grunt] Relay Coupler [Grunt] Relay Coupler [Behemoth] HERF Cannon Heavy Disruptor Cannon Enhanced Nova Cannon Enhanced Hardcell Cannon Tesla Bomb Launcher Gamma Bomb Array Plasma Cutter [Rating: 160] Favorites ----------- Power Light Antimatter Reactor Engine Heavy Deuterium Engine Power Core Reinforced Fission Core Reactor Light Antimatter Reactor Propulsion Advanced Treads Treads Advanced Treads Leg Flexi-carbon Leg Wheel Armored Huge Wheel Utility Advanced Targeting Computer Device Improved Heat Sink Storage High-capacity Storage Unit Processor Advanced Targeting Computer Hackware Relay Coupler [Grunt] Protection Hardened Medium Armor Plating Weapon Plasma Cannon Energy Gun Plasma Rifle Energy Cannon Plasma Cannon Ballistic Gun Autogun Ballistic Cannon Enhanced Hardcell Cannon Launcher Long-range Missile Launcher Special Weapon Improved Remote Datajack Build | -11 -10 -9 -8 -8 -8 -8 -7 -7 -7 -7 -6 -6 -5 -5 -4 -4 -3 -3 -2 -2 -1 -1 -1 ------- Run | Yrd Mat Mat Mat Gar Mat Gar Fac Gar Fac Gar Fac Gar Fac Gar Fac Gar Res Gar Res Gar Acc Gar Acc Slots Evolved 18 | . . 2 2 . . . 2 . . . 2 . 2 . 2 . 2 . 2 . 2 . . Power 1 | . . . . . . . . . . . . . . . 1 . . . . . . . . Propulsion 4 | . . . 1 . . . 1 . . . . . 1 . 1 . . . . . . . . Utility 11 | . . 1 1 . . . 1 . . . 2 . 1 . . . 1 . 2 . 2 . . Weapon 2 | . . 1 . . . . . . . . . . . . . . 1 . . . . . . Parts Attached 208 | 7 5 5 8 3 4 14 6 2 3 15 7 4 5 22 7 35 5 9 13 11 . 13 5 Power 33 | 1 . 1 2 . 1 2 1 . . 1 . . . 3 2 9 . 1 1 4 . 3 1 Engine 6 | 1 . 1 1 . . 1 1 . . . . . . . . 1 . . . . . . . Core 6 | . . . 1 . 1 1 . . . . . . . . . 2 . . . . . 1 . Reactor 21 | . . . . . . . . . . 1 . . . 3 2 6 . 1 1 4 . 2 1 Propulsion 56 | 2 1 2 2 . 1 3 1 . . 5 1 1 1 6 1 13 2 4 4 3 . . 3 Treads 20 | . . 2 2 . 1 3 1 . . 5 1 1 1 . . . . . . . . . 3 Leg 35 | 2 1 . . . . . . . . . . . . 5 1 13 2 4 4 3 . . . Wheel 1 | . . . . . . . . . . . . . . 1 . . . . . . . . . Hover . | . . . . . . . . . . . . . . . . . . . . . . . . Flight . | . . . . . . . . . . . . . . . . . . . . . . . . Utility 71 | 2 2 1 3 . . 4 2 2 3 5 5 1 4 5 4 11 3 3 4 2 . 5 . Device 26 | 1 . . 1 . . 2 . 1 2 1 2 . 2 3 1 5 . 2 1 1 . 1 . Storage 7 | 1 2 . . . . . 1 . . . 1 . . . 2 . . . . . . . . Processor 11 | . . 1 . . . 1 1 . . 1 1 . 1 . . 3 2 . . . . . . Hackware 18 | . . . . . . 1 . 1 . 2 . . 1 1 1 2 1 1 2 1 . 4 . Protection 9 | . . . 2 . . . . . 1 1 1 1 . 1 . 1 . . 1 . . . . Artifact . | . . . . . . . . . . . . . . . . . . . . . . . . Weapon 48 | 2 2 1 1 3 2 5 2 . . 4 1 2 . 8 . 2 . 1 4 2 . 5 1 Energy Gun 2 | . . . 1 . . . . . . . . . . . . 1 . . . . . . . Energy Cannon 18 | . . . . . . 3 . . . 3 . . . 5 . 1 . . 2 . . 3 1 Ballistic Gun 9 | 2 2 1 . 1 2 1 . . . . . . . . . . . . . . . . . Ballistic Cannon 10 | . . . . . . . 1 . . 1 . 2 . 2 . . . 1 . 2 . 1 . Launcher 5 | . . . . 1 . 1 . . . . 1 . . . . . . . 1 . . 1 . Special Weapon 4 | . . . . 1 . . 1 . . . . . . 1 . . . . 1 . . . . Impact Weapon . | . . . . . . . . . . . . . . . . . . . . . . . . Slashing Weapon . | . . . . . . . . . . . . . . . . . . . . . . . . Piercing Weapon . | . . . . . . . . . . . . . . . . . . . . . . . . Special Melee Weapon . | . . . . . . . . . . . . . . . . . . . . . . . . Unidentified Prototypes 7 | . . 1 1 . . . 1 . . . . . . . . . . . 4 . . . . Parts Lost 116 | . . . 2 . . 7 . . 1 7 . . 1 14 6 26 . 14 1 3 . 30 4 Power 21 | . . . . . . 2 . . . . . . 1 1 2 6 . 2 1 1 . 4 1 Propulsion 34 | . . . 1 . . 2 . . . 3 . . . 5 2 8 . 5 . 1 . 5 2 Utility 33 | . . . 1 . . 2 . . 1 1 . . . 4 2 7 . 3 . . . 12 . Weapon 28 | . . . . . . 1 . . . 3 . . . 4 . 5 . 4 . 1 . 9 1 Highest Loss Streak 30 | . . . 1 . . 2 . . 1 3 . . 1 14 4 23 . 12 1 2 . 30 3 To Critical Strikes 3 | . . . . . . 1 . . . . . . . 1 . . . . . . . 1 . Average Backups 15 | 3 9 11 13 14 12 12 13 17 19 19 18 19 16 17 17 14 18 18 15 17 18 14 4 Power . | . 1 1 1 1 . . . 1 1 1 1 1 . 1 3 1 2 1 1 . . . . Propulsion 2 | 1 2 2 1 2 5 3 1 2 3 3 3 4 3 1 . . 3 3 1 1 2 1 . Utility 6 | . 2 2 2 3 2 4 4 7 9 9 6 7 6 7 7 8 11 9 8 8 9 7 3 Weapon 4 | 1 3 5 7 7 4 2 3 4 4 3 5 5 5 4 5 2 1 2 3 6 6 3 . Tool/Special . | . . . . . . . . . . . . . . . . . . . . . . . . Unused Backups 38 | . 4 4 1 2 3 2 1 . . 3 1 3 . 4 . 1 1 1 . 3 . 1 3 Power 3 | . . . . . 1 . . . . 1 . . . 1 . . . . . . . . . Propulsion 12 | . 3 2 . . 1 1 . . . . . 2 . 2 . . . . . . . 1 . Utility 11 | . . . . . . . 1 . . 2 . . . . . 1 1 1 . 2 . . 3 Weapon 12 | . 1 2 1 2 1 1 . . . . 1 1 . 1 . . . . . 1 . . . Tool/Special . | . . . . . . . . . . . . . . . . . . . . . . . . Average Slot Usage (%) 93 | . 100 98 96 100 99 99 99 99 97 99 99 100 99 85 92 79 94 87 88 88 88 72 12 Engine 3 | . 14 11 6 9 1 5 6 7 7 4 . . 4 1 . . . . . . . . . Core 1 | . . . 2 . 7 2 . . . . . . . . . 2 4 3 . . . . . Reactor 2 | . . . . . . . . . . 2 6 6 . 3 9 4 4 3 6 7 8 5 2 Treads 17 | . . 15 25 27 27 27 30 30 30 29 26 26 29 8 . . . . . . . . 8 Leg 8 | . 28 6 . . . . . . . . . . . 14 26 23 28 26 24 23 24 17 . Device 13 | . 14 11 10 18 18 18 15 18 20 11 13 13 14 10 13 9 9 9 7 11 16 12 . Storage 6 | . 14 11 9 9 9 9 7 7 7 7 6 6 5 5 5 5 4 4 4 4 4 3 . Processor 11 | . . 10 6 . . 1 14 9 7 10 19 20 17 17 15 14 21 20 17 17 16 13 . Hackware 1 | . . . . . . . . . . . . . 2 1 . 1 . 3 7 3 . 5 . Protection 4 | . . . 8 9 8 7 . . . 6 5 6 5 3 4 1 . . 3 4 4 2 . Energy Cannon 7 | . . . . . . 15 15 15 15 14 13 7 5 4 3 5 4 3 7 5 4 3 1 Ballistic Gun 6 | . 28 31 27 25 27 9 . . . . . . . . . . . . . . . . . Ballistic Cannon 4 | . . . . . . . 5 5 7 7 6 11 10 9 10 6 4 4 3 7 8 5 . Peak Build Rating 160 | 7 10 21 32 32 33 40 43 45 47 50 57 62 67 112 134 122 112 124 142 152 152 160 78 Average Rating 64 | 5 9 19 26 31 31 35 41 43 45 45 55 59 65 88 128 88 107 106 126 139 152 118 51 On Entrance 60 | . 7 10 21 31 31 32 36 43 45 47 46 56 62 67 105 96 98 112 61 135 152 152 1 Avg Prop Armor Cover (%) . | . . . . . . . . . . . . . . . . . . . . . . . . Naked Turns 62 | . . . . . . . . . . . . . . . . . . . . . . 25 37 Heaviest Build 142 | 13 32 38 48 51 48 60 73 74 76 77 83 87 88 108 126 114 104 118 124 138 138 142 36 Greatest Support 240 | 20 20 44 66 64 64 64 84 84 84 90 90 93 113 140 165 150 140 145 155 165 165 165 240 Greatest Overweight (x) 3 | . 1 1 1 . . 1 . . . 1 . . . 2 . 3 . 1 1 1 . 1 . Average Overweight (x) . | . . . . . . . . . . . . . . . . . . . . . . . . Largest Inventory Capacity 25 | 8 15 15 15 15 15 15 20 20 20 20 20 20 20 20 25 20 20 20 20 20 20 20 5 Average Capacity 17 | 7 9 15 15 15 15 15 15 20 20 20 20 20 20 20 20 20 20 20 20 20 20 17 5 Most Carried 20 | 7 10 15 15 15 15 15 17 20 20 20 20 20 19 20 20 20 20 20 20 20 20 20 4 Average Carried 16 | 4 9 11 13 14 14 14 14 17 19 19 19 20 17 17 17 14 19 19 16 19 20 15 4 Final Capacity 20 | 8 15 15 15 15 15 15 20 20 20 20 20 20 20 20 20 20 20 20 20 20 20 5 5 Final Carried 20 | 7 10 14 15 15 15 14 17 19 19 20 20 20 18 18 18 20 19 15 20 20 20 4 4 Class Distribution -------------------- 37% | Gunner 16% | Bothacker-Gunner 12% | Scavenger-Gunner 10% | Tank 6% | Mutant 6% | Scientist-Tank 3% | Botlord-Gunner Dominant Class ---------------- Mutant | -10/Materials Gunner | -9/Materials Gunner | -8/Materials Tank | -8/Garrison Scientist-Tank | -8/Materials Tank | -8/Garrison Gunner | -7/Factory Gunner | -7/Garrison Gunner | -7/Factory Gunner | -7/Garrison Gunner | -6/Factory Gunner | -6/Garrison Gunner | -5/Factory Gunner | -5/Garrison Bothacker-Gunner | -4/Factory Scavenger-Gunner | -4/Garrison Scavenger-Gunner | -3/Research Bothacker-Gunner | -3/Garrison Scavenger-Gunner | -2/Research Scavenger-Gunner | -2/Garrison Botlord-Gunner | -1/Access Botlord-Gunner | -1/Garrison Mutant | -1/Access Resources | -11 -10 -9 -8 -8 -8 -8 -7 -7 -7 -7 -6 -6 -5 -5 -4 -4 -3 -3 -2 -2 -1 -1 -1 ----------- Run | Yrd Mat Mat Mat Gar Mat Gar Fac Gar Fac Gar Fac Gar Fac Gar Fac Gar Res Gar Res Gar Acc Gar Acc Matter Collected 7205 | 306 152 287 558 112 522 617 162 132 113 616 171 87 54 448 484 891 . 301 65 850 . 268 9 Remotely . | . . . . . . . . . . . . . . . . . . . . . . . . Salvage Created 9755 | 120 275 354 806 114 718 1029 432 200 234 767 586 79 147 461 411 1056 . 433 131 903 . 414 85 Parts 471 | 14 11 29 43 5 43 51 22 8 11 38 36 4 5 25 14 24 . 16 4 38 . 24 6 Haulers Intercepted 4 | . 1 . . . 2 . . . . . 1 . . . . . . . . . . . . Recyclers Shooed 3 | . . . . . 1 . 1 . . . 1 . . . . . . . . . . . . Parts Field Recycled . | . . . . . . . . . . . . . . . . . . . . . . . . Retrieved Matter . | . . . . . . . . . . . . . . . . . . . . . . . . Parts Self-Destructed . | . . . . . . . . . . . . . . . . . . . . . . . . Prevented . | . . . . . . . . . . . . . . . . . . . . . . . . Parts Restored . | . . . . . . . . . . . . . . . . . . . . . . . . Kills | -11 -10 -9 -8 -8 -8 -8 -7 -7 -7 -7 -6 -6 -5 -5 -4 -4 -3 -3 -2 -2 -1 -1 -1 ------- Run | Yrd Mat Mat Mat Gar Mat Gar Fac Gar Fac Gar Fac Gar Fac Gar Fac Gar Res Gar Res Gar Acc Gar Acc Combat Hostiles Destroyed 203 | . 3 8 17 5 13 24 7 7 4 22 12 1 2 14 7 17 . 9 2 19 . 6 4 Melee 4 | . . . . . . 1 . . . . . . . . . . . . . . . . 3 Guns 58 | . 3 8 17 2 13 14 . . . . . . . . . 1 . . . . . . . Cannons 105 | . . . . . . 5 7 3 4 20 6 1 2 10 7 12 . 6 2 18 . 1 1 AOE 26 | . . . . 3 . 3 . 3 . 1 4 . . 4 . 2 . 3 . . . 3 . Classes Destroyed 18 | 2 2 5 2 . . 2 . . . 2 . . . 1 1 . . . . 1 . . . Worker 3 | . . 1 . . . . . . . . 1 . . . 1 . . . . . . . . Builder 4 | . . . 1 . . . 1 . . . 2 . . . . . . . . . . . . Tunneler 4 | 4 . . . . . . . . . . . . . . . . . . . . . . . Hauler 4 | . 1 . . . 2 . . . . . 1 . . . . . . . . . . . . Recycler 8 | 1 1 . 2 . 1 . 1 . 1 . . . . . 1 . . . . . . . . Operator 2 | . . 1 . . . . . . . . . . 1 . . . . . . . . . . Watcher 3 | . . 1 . . . . . . . . . 1 . . 1 . . . . . . . . Swarmer 53 | . . 3 6 3 3 3 . 4 2 4 3 . . 5 . . . 3 . 7 . 3 4 Cutter 4 | . . . . . . . . . . 3 . . . 1 . . . . . . . . . Saboteur 1 | . . . . . . . . . . . . . . . . . . . . 1 . . . Grunt 64 | . 3 3 9 . 7 7 4 2 1 7 5 . 1 . . 10 . 4 . 1 . . . Brawler 3 | . . . . . . . . . . 1 . . 1 . . . . 1 . . . . . Duelist 6 | . . . . . . 2 . . . 2 1 . . . . . . 1 . . . . . Sentry 34 | . . 2 1 . 3 6 2 1 1 3 2 1 . 3 1 2 . . 2 4 . . . Hunter 17 | . . . 1 2 . 3 . . . . . . . 4 2 4 . . . . . 1 . Programmer 19 | . . . . . . 3 1 . . 3 1 . . . 3 . . . . 6 . 2 . Behemoth 2 | . . . . . . . . . . . . . . . 1 1 . . . . . . . Assembled 1 | . . . . . . . . . . . . . . 1 . . . . . . . . . Thug 1 | . . . . . . . . . . . . . . . . . . . . . . 1 . Best Kill Streak 11 | 2 3 4 11 3 4 7 3 6 4 8 6 1 2 7 3 4 . 3 1 5 . 5 4 Combat Bots Only 8 | . 2 4 5 3 4 7 2 6 4 8 4 1 2 7 2 4 . 3 1 5 . 5 4 Max Kills in Single Turn 3 | 1 1 2 2 3 1 2 1 2 2 2 3 1 1 3 1 2 . 3 1 2 . 2 1 Gunslinging 1 | . . 1 1 . . 1 . . . . . . . . . . . . . . . . . Exploded 3 | . . . . 3 . 1 . 2 . 1 3 . . 3 . 2 . 3 . . . 2 . Melee 1 | . . . . . . 1 . . . . . . . . . . . . . . . . 1 Uniques/NPCs Destroyed . | . . . . . . . . . . . . . . . . . . . . . . . . Combat | -11 -10 -9 -8 -8 -8 -8 -7 -7 -7 -7 -6 -6 -5 -5 -4 -4 -3 -3 -2 -2 -1 -1 -1 -------- Run | Yrd Mat Mat Mat Gar Mat Gar Fac Gar Fac Gar Fac Gar Fac Gar Fac Gar Res Gar Res Gar Acc Gar Acc Hostile Shots Fired 1950 | . 35 39 71 28 40 131 28 37 5 224 31 . 8 185 137 254 . 160 36 80 . 251 170 Missed 578 | . 8 11 16 8 13 31 14 13 2 74 17 . . 31 56 79 . 51 10 24 . 67 53 Deflected 1 | . . . . . . . . . . . . . . . 1 . . . . . . . . Hits 1372 | . 27 28 55 20 27 100 14 24 3 150 14 . 8 154 81 175 . 109 26 56 . 184 117 Melee 15 | . . . . . . 2 . . . 4 . . 2 1 . . . 3 . 2 . 1 . Projectile 1357 | . 27 28 55 20 27 98 14 24 3 146 14 . 6 153 81 175 . 106 26 54 . 183 117 AOE 3 | . . . . . . . . . . . . . . 2 1 . . . . . . . . Critical Strikes 39 | . . . 4 . 2 5 2 2 . 5 . . . 1 . 8 . 4 . . . 6 . Part Disruptions 1 | . . . . . . 1 . . . . . . . . . . . . . . . . . Damage Taken 26187 | . 319 308 808 240 380 1518 134 335 71 1937 168 . 395 2782 1923 3623 . 2526 646 1231 . 4179 2664 Core 3737 | . 77 34 81 . 39 151 49 . . 178 18 . . 502 102 462 . 419 . 22 . 931 672 Absorbed by Shields 481 | . . . . . . . . 79 . . . . . 157 . 127 . 32 . 78 . 8 . Regen/Repaired (Parts) 1049 | . . 164 126 . 223 . 182 . . . 253 . 101 . . . . . . . . . . Core Remaining (%) 73 | 100 69 91 . . . 50 . . . 67 . 97 . 49 . 50 . 67 . 98 . . . Volleys Fired 582 | 18 14 23 44 7 41 67 19 12 5 57 19 2 4 41 26 51 1 17 11 67 . 28 8 Largest 4 | 2 2 3 3 3 3 3 3 3 3 3 3 3 3 3 3 3 1 3 3 4 . 3 1 Hottest 317 | 40 46 69 69 69 73 240 200 200 200 200 212 212 179 240 236 268 7 202 248 317 . 236 110 Shots Fired 1382 | 36 28 69 125 17 123 194 55 23 15 156 53 6 10 65 74 105 1 35 22 130 . 32 8 Gun 501 | 36 28 69 125 15 123 99 . . . . . . . . . 6 . . . . . . . Cannon 809 | . . . . . . 92 54 18 15 152 52 6 9 55 72 89 . 30 19 127 . 11 8 Launcher 23 | . . . . 2 . 3 . 3 . 1 1 . . 6 . 1 . 2 . . . 4 . Special 49 | . . . . . . . 1 2 . 3 . . 1 4 2 9 1 3 3 3 . 17 . Kinetic 771 | 36 28 69 125 15 123 76 18 6 5 58 17 3 6 18 48 35 . 18 8 56 . 3 . Thermal 512 | . . . . . . 115 36 12 10 94 35 3 3 34 24 60 . 12 8 63 . 3 . Explosive 19 | . . . . 2 . 3 . 3 . 1 1 . . 6 . 1 . 2 . . . . . Electromagnetic 31 | . . . . . . . . . . . . . . 3 . . . . 3 8 . 9 8 Robot Hit Streak 26 | 5 5 13 26 8 17 13 13 13 12 11 16 6 7 11 11 25 4 19 16 19 . 11 4 Robot Miss Streak 6 | 2 4 3 6 1 2 3 3 1 1 4 6 . 1 6 2 5 . 1 1 3 . 2 1 Penetration Max 1 | . . . . . . 1 . . . . . . . . . . . 1 . . . . . Secondary Targets 13 | . . 2 4 1 . 6 . . . . . . . . . . . . . . . . . Max Gunslinging Chain 1 | . . 1 1 1 . 1 . . . . . . . . . . . . . . . . . Shots Hit Robots 867 | 22 15 42 91 9 75 108 36 11 10 92 34 4 7 45 49 71 1 27 19 68 . 26 5 Core Hits 388 | 9 5 16 37 10 30 39 15 8 7 37 23 3 7 18 14 29 . 17 6 27 . 27 4 Critical Kills 8 | . . . 1 1 . . . 1 . . 2 . . . . 2 . . . . . 1 . Critical Parts Destroyed 2 | . . 1 . . 1 . . . . . . . . . . . . . . . . . . Critical Strikes 26 | . . 1 1 1 1 3 . 2 . 3 2 . . 2 . 4 . . 2 3 . 1 . Burn 3 | . . . . . . 3 . . . . . . . . . . . . . . . . . Meltdown 6 | . . . . . . . . 1 . . 2 . . . . 2 . . . . . 1 . Destroy 4 | . . 1 1 1 1 . . . . . . . . . . . . . . . . . . Blast 13 | . . . . . . . . 1 . 3 . . . 2 . 2 . . 2 3 . . . Melee Attacks . | . . . . . . . . . . . . . . . . . . . . . . . . Impact . | . . . . . . . . . . . . . . . . . . . . . . . . Slashing . | . . . . . . . . . . . . . . . . . . . . . . . . Piercing . | . . . . . . . . . . . . . . . . . . . . . . . . Sneak Attacks . | . . . . . . . . . . . . . . . . . . . . . . . . Combat Hostiles . | . . . . . . . . . . . . . . . . . . . . . . . . Follow-up Attacks . | . . . . . . . . . . . . . . . . . . . . . . . . Damage Inflicted 26571 | 161 223 683 1396 207 1245 2594 982 560 289 2723 1564 122 303 2073 2269 2534 . 1436 580 3196 . 1193 238 Guns 5151 | 161 223 683 1388 92 1245 1316 . . . . . . . . . 43 . . . . . . . Cannons 18020 | . . . . . . 989 982 239 289 2602 976 122 195 1568 2267 2369 . 1099 580 3196 . 370 177 Explosions 3313 | . . . . 115 . 273 . 321 . 121 588 . 108 505 . 122 . 337 . . . 823 . Melee . | . . . . . . . . . . . . . . . . . . . . . . . . Ramming 87 | . . . 8 . . 16 . . . . . . . . 2 . . . . . . . 61 Kinetic 12204 | 161 223 683 1388 92 1245 976 227 86 85 984 208 60 106 456 1562 802 . 845 198 1711 . 106 . Thermal 10732 | . . . . . . 1329 755 153 204 1618 1122 62 89 1054 705 1610 . 254 295 1337 . 145 . Explosive 2136 | . . . . 115 . 273 . 321 . 121 234 . 108 505 . 122 . 337 . . . . . Electromagnetic 1412 | . . . . . . . . . . . . . . 58 . . . . 87 148 . 942 177 Impact . | . . . . . . . . . . . . . . . . . . . . . . . . Slashing . | . . . . . . . . . . . . . . . . . . . . . . . . Piercing . | . . . . . . . . . . . . . . . . . . . . . . . . Highest Corruption 9 | . . . . . . 4 1 1 1 2 . . . . 2 2 . 6 . 4 . 9 9 Average Corruption 2 | . . . . . . 2 1 1 1 1 . . . . 1 2 . 6 . 3 . 3 9 Corruption Purged 3 | . . . . . . . . . 1 2 . . . . . . . . . . . . . Corruption Blocked . | . . . . . . . . . . . . . . . . . . . . . . . . Effects 49 | . . . . . . 2 2 3 . 3 . . . . 3 18 . 9 . 5 . . 4 Message Errors 12 | . . . . . . 1 1 . . 1 . . . . 1 3 . 2 . 1 . . 2 Matter Fused 14 | . . . . . . 1 . . . . . . . . . 7 . 4 . 2 . . . Heat Flow Errors 4 | . . . . . . . . 1 . 1 . . . . . 1 . . . . . . 1 Energy Discharges 3 | . . . . . . . . . . . . . . . . 3 . . . . . . . Parts Rejected 2 | . . . . . . . . . . . . . . . . 1 . . . . . . 1 Parts Fused 2 | . . . . . . . . . . . . . . . 1 1 . . . . . . . Data Loss (minor) 6 | . . . . . . . . 1 . . . . . . . 2 . 2 . 1 . . . Data Loss (major) 2 | . . . . . . . 1 . . . . . . . . . . 1 . . . . . Misfires 1 | . . . . . . . . . . . . . . . . . . . . 1 . . . Alerts 1 | . . . . . . . . . . . . . . . 1 . . . . . . . . Weapon Failures 2 | . . . . . . . . 1 . 1 . . . . . . . . . . . . . Overload Shots . | . . . . . . . . . . . . . . . . . . . . . . . . Overflow Damage 758 | . . . . . . 65 20 27 . 99 90 . 3 105 144 32 . 10 . 161 . . 2 Projectiles 604 | . . . . . . 52 20 . . 94 . . . 99 144 32 . . . 161 . . 2 Explosions 154 | . . . . . . 13 . 27 . 5 90 . 3 6 . . . 10 . . . . . Melee . | . . . . . . . . . . . . . . . . . . . . . . . . Knockbacks 45 | . . . . . . . 2 1 . 8 6 . . 2 6 4 . 3 . 12 . . 1 Impact 1 | . . . . . . . . . . . . . . . . . . . . . . . 1 Kinetic 41 | . . . . . . . 2 1 . 8 6 . . 2 6 4 . 3 . 9 . . . Secondary 3 | . . . . . . . . . . . . . . . . . . . . 3 . . . Self-Inflicted Damage 506 | . . . . . . 36 . 40 . 49 . . 238 41 . . . 31 . . . 71 . Shots 17 | . . . . . . 1 . 2 . 1 . . 3 2 . . . 1 . . . 7 . Rammed 24 | . . . 2 . . 3 . . . . . . . . . . . . . . . . 19 Targets Rammed 29 | . . . 2 . . 4 . . . . . . . . 1 . . . . . . . 22 Kicked 1 | . . . . . . . . . . . . . . . 1 . . . . . . . . Crushed 4 | . . . . . . 1 . . . . . . . . . . . . . . . . 3 Highest Temperature 623 | . 34 116 279 4 30 350 367 252 66 398 230 90 60 327 288 623 . 489 69 276 . 36 130 Average Temperature 86 | . 13 38 96 1 9 104 123 88 29 104 85 42 24 93 81 135 . 196 41 53 . 21 56 Received Heat Transfer 4937 | . 156 93 423 . 225 378 51 85 18 459 27 . 54 126 147 1253 . 1048 108 82 . 168 36 Effects 10 | . . . 1 . . . . . . . . . . . . 6 . 2 . 1 . . . Shutdowns 5 | . . . . . . . . . . . . . . . . 3 . 2 . . . . . Interference 4 | . . . 1 . . . . . . . . . . . . 2 . . . 1 . . . Damage (minor) 1 | . . . . . . . . . . . . . . . . 1 . . . . . . . Siege Activations . | . . . . . . . . . . . . . . . . . . . . . . . . Martial Activations . | . . . . . . . . . . . . . . . . . . . . . . . . Shielding Activations 1 | . . . . . . . . . . . . . . . 1 . . . . . . . . Total Turns 12 | . . . . . . . . . . . . . . . 12 . . . . . . . . Longest Duration 12 | . . . . . . . . . . . . . . . 12 . . . . . . . . Robots Disrupted . | . . . . . . . . . . . . . . . . . . . . . . . . Combat Hostiles . | . . . . . . . . . . . . . . . . . . . . . . . . Robots Corrupted 2 | . . . . . . . . . . . . . . . . . . . . 1 . 1 . Combat Hostiles 2 | . . . . . . . . . . . . . . . . . . . . 1 . 1 . Parts Fried 4 | . . . . . . . . . . . . . . . . . . . . . . 4 . Impact Corruptions . | . . . . . . . . . . . . . . . . . . . . . . . . Robots Melted 8 | . . . . . . 1 . 1 . 1 2 . . . . 2 . . . . . 1 . Combat Hostiles 8 | . . . . . . 1 . 1 . 1 2 . . . . 2 . . . . . 1 . Parts Melted 25 | . . . . . . 4 . 4 . 5 1 . . 1 . 6 . . . 1 . 3 . Heat Transferred 14224 | . . . . . . 2537 1450 300 400 3000 1281 74 111 829 592 1864 . 400 259 1035 . 92 . Parts Sabotaged 4 | . . . . . . . . . . . . . . . . . . . . 4 . . . Parts Stolen . | . . . . . . . . . . . . . . . . . . . . . . . . Parts Stripped . | . . . . . . . . . . . . . . . . . . . . . . . . Power Chain Reactions . | . . . . . . . . . . . . . . . . . . . . . . . . Alert | -11 -10 -9 -8 -8 -8 -8 -7 -7 -7 -7 -6 -6 -5 -5 -4 -4 -3 -3 -2 -2 -1 -1 -1 ------- Run | Yrd Mat Mat Mat Gar Mat Gar Fac Gar Fac Gar Fac Gar Fac Gar Fac Gar Res Gar Res Gar Acc Gar Acc Maximum Alert Level 3 | . . . 1 1 1 3 2 2 1 3 2 2 1 3 2 2 1 1 . 3 2 1 . Low Security (%) 29 | 100 100 100 86 73 97 11 . . . 1 . . . . . . 1 50 100 27 . 19 100 Level 1 30 | . . . 13 26 2 16 87 54 100 18 42 . 100 2 28 45 98 50 . 16 . 80 . Level 2 35 | . . . . . . 54 12 45 . 67 57 100 . 77 71 54 . . . 40 100 . . Level 3 5 | . . . . . . 18 . . . 12 . . . 20 . . . . . 15 . . . Level 4 . | . . . . . . . . . . . . . . . . . . . . . . . . Level 5 . | . . . . . . . . . . . . . . . . . . . . . . . . High Security . | . . . . . . . . . . . . . . . . . . . . . . . . Max Security . | . . . . . . . . . . . . . . . . . . . . . . . . Peak Influence 859 | 10 51 105 253 296 205 859 450 462 349 841 608 437 399 803 499 616 346 333 159 762 456 383 98 Initial 456 | . . . 5 143 144 115 450 207 242 188 441 409 228 261 421 328 346 147 159 42 456 324 64 Average 345 | 1 15 39 98 187 140 490 360 357 283 520 426 431 364 586 431 433 284 212 104 427 431 281 57 Influence Increases 7807 | 25 83 251 450 153 383 814 249 255 177 803 494 28 265 752 454 608 . 278 134 770 . 265 116 Destroy 0b10 Robot/C 4345 | . 60 160 340 100 260 480 140 140 120 480 280 20 40 340 220 340 . 180 40 425 . 120 60 Destroy 0b10 Robot/NC 165 | 25 10 15 15 . 15 . 10 . 5 . 40 5 5 . 15 . . . 5 . . . . Destroy Leader 648 | . 12 42 70 10 74 40 50 10 20 30 68 . 10 20 62 40 . 10 20 20 . 32 8 Allied During Kill 286 | . . . . . . . . . 16 12 53 3 17 32 55 40 . . 4 18 . 36 . Trap Triggered on 0b10 10 | . . . . . . . 10 . . . . . . . . . . . . . . . . Successful Hack 140 | . . 3 9 . 14 . 5 28 . 16 6 . 14 . 6 . . . 14 14 . 11 . Disable Machine 285 | . . . . 30 . . 30 . 15 30 15 . 75 . 30 . . . 45 15 . . . Anti-Garrison Action 1000 | . . . . . . 250 . 50 . 200 . . . 200 . 100 . 50 . 150 . . . Destroy Structure 607 | . 1 1 1 13 5 44 4 27 1 5 32 . 104 160 36 28 . 23 6 98 . 18 . Partial Spotted 30 | . . 15 . . . . . . . . . . . . 15 . . . . . . . . Lose Combat Pursuer 291 | . . 15 15 . 15 . . . . 30 . . . . 15 60 . 15 . 30 . 48 48 Influence Decreases 7747 | 25 83 237 243 78 502 132 811 90 370 231 750 176 329 322 788 461 420 189 362 65 356 562 165 Entered New Map 3414 | . . . 9 78 152 62 409 90 220 81 400 176 209 112 382 141 270 49 126 15 306 82 45 Time Decay 2613 | 25 83 237 214 . 350 . 392 . 140 . 350 . 110 . 246 . 130 . 206 . 50 . 80 Lost Part 1160 | . . . 20 . . 70 . . 10 70 . . 10 140 60 260 . 140 10 30 . 300 40 Lost Ally 560 | . . . . . . . 10 . . 80 . . . 70 100 60 20 . 20 20 . 180 . Squads Dispatched 22 | . 1 2 3 . 2 . 3 . 1 . 4 . . . 3 . 1 . 2 . . . . Investigation 7 | . . . 1 . . . 2 . . . 1 . . . 2 . . . 1 . . . . Extermination 6 | . . . . . . . 1 . 1 . 2 . . . . . 1 . 1 . . . . Reinforcement 8 | . 1 2 2 . 1 . . . . . 1 . . . 1 . . . . . . . . Assault . | . . . . . . . . . . . . . . . . . . . . . . . . Garrison 1 | . . . . . 1 . . . . . . . . . . . . . . . . . . Intercept . | . . . . . . . . . . . . . . . . . . . . . . . . Searches Triggered . | . . . . . . . . . . . . . . . . . . . . . . . . Construction Impeded 2 | . . . . . . . . . . . 1 . . . 1 . . . . . . . . Haulers Reinforced . | . . . . . . . . . . . . . . . . . . . . . . . . Active Scanning Responses . | . . . . . . . . . . . . . . . . . . . . . . . . Cargo Convoy Interrupts . | . . . . . . . . . . . . . . . . . . . . . . . . Stealth | -11 -10 -9 -8 -8 -8 -8 -7 -7 -7 -7 -6 -6 -5 -5 -4 -4 -3 -3 -2 -2 -1 -1 -1 --------- Run | Yrd Mat Mat Mat Gar Mat Gar Fac Gar Fac Gar Fac Gar Fac Gar Fac Gar Res Gar Res Gar Acc Gar Acc Distress Signals 11 | . 1 4 3 . 1 . 1 . . . . . . . . . . . . . . . 1 Communications Jammed . | . . . . . . . . . . . . . . . . . . . . . . . . Distress Signals . | . . . . . . . . . . . . . . . . . . . . . . . . Times Spotted 346 | . 12 21 22 5 18 25 9 8 6 29 14 1 5 25 21 27 3 16 7 30 . 28 14 Peak Tracking Total 14 | . 6 7 5 3 3 5 3 5 3 10 3 1 4 6 6 6 2 9 2 7 . 14 7 Tactical Retreats 15 | . . 1 1 . 1 . . . . 2 . . . . 1 1 . 1 . 2 . 3 2 Traps | -11 -10 -9 -8 -8 -8 -8 -7 -7 -7 -7 -6 -6 -5 -5 -4 -4 -3 -3 -2 -2 -1 -1 -1 ------- Run | Yrd Mat Mat Mat Gar Mat Gar Fac Gar Fac Gar Fac Gar Fac Gar Fac Gar Res Gar Res Gar Acc Gar Acc Traps Triggered 19 | . . . 1 . . 3 . . 1 1 . . . 3 . 3 . 1 1 5 . . . Indirectly . | . . . . . . . . . . . . . . . . . . . . . . . . Trap Hack Attempts . | . . . . . . . . . . . . . . . . . . . . . . . . Triggered . | . . . . . . . . . . . . . . . . . . . . . . . . Disarmed . | . . . . . . . . . . . . . . . . . . . . . . . . Reprogrammed . | . . . . . . . . . . . . . . . . . . . . . . . . Reused 1 | . . . . . . . 1 . . . . . . . . . . . . . . . . Traps Extracted . | . . . . . . . . . . . . . . . . . . . . . . . . Installed 2 | . . . . . . . 1 1 . . . . . . . . . . . . . . . Triggered 1 | . . . . . . . 1 . . . . . . . . . . . . . . . . Most Traps Carried 2 | . . . . 2 2 2 2 1 . . . . . . . . . . . . . . . Machines | -11 -10 -9 -8 -8 -8 -8 -7 -7 -7 -7 -6 -6 -5 -5 -4 -4 -3 -3 -2 -2 -1 -1 -1 ---------- Run | Yrd Mat Mat Mat Gar Mat Gar Fac Gar Fac Gar Fac Gar Fac Gar Fac Gar Res Gar Res Gar Acc Gar Acc Machines Disabled 34 | . . . . 2 . 3 2 1 1 3 1 . 5 3 2 2 . 1 3 5 . . . Max in Single Turn 5 | . . . . 1 . 1 1 1 1 1 1 . 5 1 1 1 . 1 1 1 . . . Garrison Access 1 | . . . . . . . 1 . . . . . . . . . . . . . . . . Garrison Relay 12 | . . . . . . 2 . 1 . 1 . . . 2 . 2 . 1 . 3 . . . Machines Repaired . | . . . . . . . . . . . . . . . . . . . . . . . . Machines Dismantled 4 | . . . . 2 . . 1 . . 1 . . . . . . . . . . . . . Machines Sabotaged . | . . . . . . . . . . . . . . . . . . . . . . . . Overloaded Fab Kills . | . . . . . . . . . . . . . . . . . . . . . . . . Hacking | -11 -10 -9 -8 -8 -8 -8 -7 -7 -7 -7 -6 -6 -5 -5 -4 -4 -3 -3 -2 -2 -1 -1 -1 --------- Run | Yrd Mat Mat Mat Gar Mat Gar Fac Gar Fac Gar Fac Gar Fac Gar Fac Gar Res Gar Res Gar Acc Gar Acc Machines Accessed 49 | . . 3 6 . 4 1 7 2 1 3 2 1 3 1 3 1 2 1 3 1 2 2 . Terminals 27 | . . 2 3 . 1 1 2 2 . 3 . 1 2 1 1 1 1 1 2 1 . 2 . Fabricators 3 | . . . . . . . 1 . . . 1 . . . 1 . . . . . . . . Repair Stations 5 | . . 1 1 . 1 . 1 . . . . . . . . . . . . . 1 . . Recycling Units . | . . . . . . . . . . . . . . . . . . . . . . . . Scanalyzers 3 | . . . 1 . 1 . 1 . . . . . . . . . . . . . . . . Garrison Access 11 | . . . 1 . 1 . 2 . 1 . 1 . 1 . 1 . 1 . 1 . 1 . . Total Hacks 93 | . . 9 17 . 11 2 15 2 1 4 3 1 7 1 5 1 2 1 5 1 2 3 . Successful 54 | . . 5 11 . 9 . 8 2 1 1 3 . 2 . 3 1 1 . 3 1 1 2 . Failed 39 | . . 4 6 . 2 2 7 . . 3 . 1 5 1 2 . 1 1 2 . 1 1 . Catastrophic 14 | . . 1 4 . 1 2 . . . 2 . 1 2 . . . 1 . . . . . . Database Lockouts . | . . . . . . . . . . . . . . . . . . . . . . . . Manual 14 | . . 2 5 . 2 . 4 . . . . . . . . . . . 1 . . . . Terminals 48 | . . 5 6 . 2 2 6 2 . 4 . 1 6 1 2 1 1 1 4 1 . 3 . Fabricators 6 | . . . . . . . 2 . . . 2 . . . 2 . . . . . . . . Repair Stations 12 | . . 4 2 . 2 . 3 . . . . . . . . . . . . . 1 . . Recycling Units . | . . . . . . . . . . . . . . . . . . . . . . . . Scanalyzers 16 | . . . 8 . 6 . 2 . . . . . . . . . . . . . . . . Garrison Access 11 | . . . 1 . 1 . 2 . 1 . 1 . 1 . 1 . 1 . 1 . 1 . . Terminal Hacks 16 | . . 1 1 . 1 . 3 2 . 1 . . 1 . . 1 . . 2 1 . 2 . Part Schematic 1 | . . . . . 1 . . . . . . . . . . . . . . . . . . Robot Schematic 1 | . . . 1 . . . . . . . . . . . . . . . . . . . . Prototype ID Bank 1 | . . . . . . . 1 . . . . . . . . . . . . . . . . Open Door 1 | . . . . . . . . . . . . . . . . . . . . . . 1 . Emergency Access Points 4 | . . . . . . . . 1 . . . . . . . 1 . . . 1 . 1 . Locate Traps 2 | . . 1 . . . . 1 . . . . . . . . . . . . . . . . Dispatch Records 1 | . . . . . . . . . . . . . . . . . . . 1 . . . . Zone Layout 3 | . . . . . . . 1 . . . . . 1 . . . . . 1 . . . . Garrison Registry 1 | . . . . . . . . 1 . . . . . . . . . . . . . . . Security Stations 1 | . . . . . . . . . . 1 . . . . . . . . . . . . . Fabricator Hacks 6 | . . . . . . . 2 . . . 2 . . . 2 . . . . . . . . Load Schematic 3 | . . . . . . . 1 . . . 1 . . . 1 . . . . . . . . Build 3 | . . . . . . . 1 . . . 1 . . . 1 . . . . . . . . Repair Station Hacks 8 | . . 4 2 . 2 . . . . . . . . . . . . . . . . . . Scan Component 4 | . . 2 1 . 1 . . . . . . . . . . . . . . . . . . Repair 4 | . . 2 1 . 1 . . . . . . . . . . . . . . . . . . Recycling Unit Hacks . | . . . . . . . . . . . . . . . . . . . . . . . . Scanalyzer 12 | . . . 7 . 5 . . . . . . . . . . . . . . . . . . Insert Component 3 | . . . 3 . . . . . . . . . . . . . . . . . . . . Analyze 3 | . . . 3 . . . . . . . . . . . . . . . . . . . . Retrieve Study 6 | . . . 1 . 5 . . . . . . . . . . . . . . . . . . Garrison Access Hacks 11 | . . . 1 . 1 . 2 . 1 . 1 . 1 . 1 . 1 . 1 . 1 . . Unlock Access 10 | . . . 1 . 1 . 1 . 1 . 1 . 1 . 1 . 1 . 1 . 1 . . Seal Access 1 | . . . . . . . 1 . . . . . . . . . . . . . . . . Unauthorized Hacks 1 | . . . . . . . 1 . . . . . . . . . . . . . . . . Terminals . | . . . . . . . . . . . . . . . . . . . . . . . . Fabricators . | . . . . . . . . . . . . . . . . . . . . . . . . Repair Stations 1 | . . . . . . . 1 . . . . . . . . . . . . . . . . Patch 1 | . . . . . . . 1 . . . . . . . . . . . . . . . . Recycling Units . | . . . . . . . . . . . . . . . . . . . . . . . . Scanalyzers . | . . . . . . . . . . . . . . . . . . . . . . . . Garrison Access . | . . . . . . . . . . . . . . . . . . . . . . . . Data Cores Recovered . | . . . . . . . . . . . . . . . . . . . . . . . . Used . | . . . . . . . . . . . . . . . . . . . . . . . . Hacking Detections 36 | . . 3 5 . 2 1 5 2 1 2 1 1 2 1 2 1 1 1 3 . 1 1 . Full Trace Events 8 | . . . 1 . . 1 1 . . 1 1 . . . 2 . . . 1 . . . . Feedback Events . | . . . . . . . . . . . . . . . . . . . . . . . . Feedback Blocked . | . . . . . . . . . . . . . . . . . . . . . . . . Robot Schematics Acquired 1 | . . . 1 . . . . . . . . . . . . . . . . . . . . Robots Built 2 | . . . . . . . 1 . . . 1 . . . . . . . . . . . . Authchips . | . . . . . . . . . . . . . . . . . . . . . . . . Time 348 | . . . . . . . 116 . . . 116 . . . 116 . . . . . . . . Total Robot Build Rating 6 | . . . . . . . 3 . . . 3 . . . . . . . . . . . . Part Schematics Acquired 4 | . . . 3 . 1 . . . . . . . . . . . . . . . . . . Parts Built . | . . . . . . . . . . . . . . . . . . . . . . . . Authchips . | . . . . . . . . . . . . . . . . . . . . . . . . Time . | . . . . . . . . . . . . . . . . . . . . . . . . Total Part Build Rating . | . . . . . . . . . . . . . . . . . . . . . . . . Part Studies Acquired 6 | . . . 1 . 5 . . . . . . . . . . . . . . . . . . Parts Repaired 4 | . . 2 1 . 1 . . . . . . . . . . . . . . . . . . Time 140 | . . 64 38 . 38 . . . . . . . . . . . . . . . . . . Parts Recycled . | . . . . . . . . . . . . . . . . . . . . . . . . Recycled Matter . | . . . . . . . . . . . . . . . . . . . . . . . . Retrieved Matter . | . . . . . . . . . . . . . . . . . . . . . . . . Retrieved Components . | . . . . . . . . . . . . . . . . . . . . . . . . Parts Scanalyzed 3 | . . . 3 . . . . . . . . . . . . . . . . . . . . Part Schematics Acquired 3 | . . . 3 . . . . . . . . . . . . . . . . . . . . Parts Damaged . | . . . . . . . . . . . . . . . . . . . . . . . . Bothacking | -11 -10 -9 -8 -8 -8 -8 -7 -7 -7 -7 -6 -6 -5 -5 -4 -4 -3 -3 -2 -2 -1 -1 -1 ------------ Run | Yrd Mat Mat Mat Gar Mat Gar Fac Gar Fac Gar Fac Gar Fac Gar Fac Gar Res Gar Res Gar Acc Gar Acc Used RIF Installer 8 | . . . . 1 . 1 . 1 . 1 . 1 . . . 1 . . . 2 . . . Command Fork 3 | . . . . . . . . 1 . . . 1 . . . 1 . . . . . . . Threat Obfuscator 1 | . . . . . . . . . . . . . . . . . . . . 1 . . . Signal Jammer 1 | . . . . . . . . . . . . . . . . . . . . 1 . . . Structural Interface 1 | . . . . . . 1 . . . . . . . . . . . . . . . . . Program Shield 1 | . . . . . . . . . . 1 . . . . . . . . . . . . . Robots Hacked 31 | . . . . . . . 1 2 . 3 . . 1 3 2 7 . . 3 3 . 6 . Non-combat 2 | . . . . . . . 1 . . . . . . . . . . . 1 . . . . Combat 29 | . . . . . . . . 2 . 3 . . 1 3 2 7 . . 2 3 . 6 . Robot Hacks Applied 33 | . . . . . . . 1 2 . 3 . . 1 3 2 7 . . 3 3 . 8 . no_distress 2 | . . . . . . . 1 . . . . . . . . . . . 1 . . . . amplify_resonance 5 | . . . . . . . . . . . . . . . 2 2 . . . 1 . . . go_dormant 3 | . . . . . . . . . . . . . . 1 . 1 . . . 1 . . . overwrite_iff 5 | . . . . . . . . . . 1 . . . . . 1 . . . . . 3 . streamctrl_high 2 | . . . . . . . . . . . . . . . . . . . 1 . . 1 . formatsys_high 16 | . . . . . . . . 2 . 2 . . 1 2 . 3 . . 1 1 . 4 . Relay Couplers Released 58 | . . . . . . 9 . 5 . 5 . . . 10 . 9 . 5 . 15 . . . Machine Destruction 58 | . . . . . . 9 . 5 . 5 . . . 10 . 9 . 5 . 15 . . . Attached 18 | . . . . . . 1 . 1 . 2 . . 1 1 1 2 1 1 2 1 . 4 . Fabnet Peak Effective % . | . . . . . . . . . . . . . . . . . . . . . . . . Robots Rewired 5 | . . . . . . . . . . 2 . . . 3 . . . . . . . . . Allies Hacked 2 | . . . . . . . . . . . . . . . . . . . . 2 . . . Hacks Repelled . | . . . . . . . . . . . . . . . . . . . . . . . . Allies | -11 -10 -9 -8 -8 -8 -8 -7 -7 -7 -7 -6 -6 -5 -5 -4 -4 -3 -3 -2 -2 -1 -1 -1 -------- Run | Yrd Mat Mat Mat Gar Mat Gar Fac Gar Fac Gar Fac Gar Fac Gar Fac Gar Res Gar Res Gar Acc Gar Acc Total Allies 39 | . . . . . . . 1 2 . 6 1 . 2 7 . 5 . . 2 2 . 11 . Largest Group 7 | . . . . . . . 1 2 2 2 3 3 5 7 7 3 1 . 1 2 . 7 . Highest-Rated Group 400 | . . . . . . . 23 32 32 70 87 87 145 206 206 145 58 . 148 116 . 400 . Highest-Rated Ally 219 | . . . . . . . 23 16 16 39 32 32 32 32 30 58 58 . 148 58 . 219 . Total Orders 3 | . . . . . . . 1 . . . 1 . 1 . . . . . . . . . . AID 3 | . . . . . . . 1 . . . 1 . 1 . . . . . . . . . . Ally Attacks 159 | . . . . . . . . . 9 24 24 1 5 24 29 13 1 . 7 4 . 18 . Total Damage 4348 | . . . . . . . . . 99 319 736 60 95 495 831 494 . . 233 96 . 890 . Kills 26 | . . . . . . . . . 2 2 6 . . 6 4 . . . 1 3 . 2 . Allies Corrupted 4 | . . . . . . . . . . 2 . . . . . . 1 . . . . 1 . Allies Melted 1 | . . . . . . . . . . . . . . . . 1 . . . . . . . Intel | -11 -10 -9 -8 -8 -8 -8 -7 -7 -7 -7 -6 -6 -5 -5 -4 -4 -3 -3 -2 -2 -1 -1 -1 ------- Run | Yrd Mat Mat Mat Gar Mat Gar Fac Gar Fac Gar Fac Gar Fac Gar Fac Gar Res Gar Res Gar Acc Gar Acc Active Infowar (turns) 7437 | 85 247 568 694 446 780 1463 939 478 191 . 789 317 239 201 . . . . . . . . . Sensors 1546 | . . . . . . . . . . . 789 317 239 201 . . . . . . . . . Seismic 5891 | 85 247 568 694 446 780 1463 939 478 191 . . . . . . . . . . . . . . Jamming 131 | . . . . . . . . . . . . . 131 . . . . . . . . . . Robot Analysis Total . | . . . . . . . . . . . . . . . . . . . . . . . . Derelict Logs Recovered . | . . . . . . . . . . . . . . . . . . . . . . . . Drone Launches . | . . . . . . . . . . . . . . . . . . . . . . . . Drone Recoveries . | . . . . . . . . . . . . . . . . . . . . . . . . Exploration | -11 -10 -9 -8 -8 -8 -8 -7 -7 -7 -7 -6 -6 -5 -5 -4 -4 -3 -3 -2 -2 -1 -1 -1 ------------- Run | Yrd Mat Mat Mat Gar Mat Gar Fac Gar Fac Gar Fac Gar Fac Gar Fac Gar Res Gar Res Gar Acc Gar Acc Turns Passed 13664 | 145 247 568 694 446 780 1465 939 478 285 1332 789 317 239 739 527 1104 264 486 434 895 114 215 162 Spaces Moved 7475 | 71 115 262 347 258 377 762 493 264 163 603 379 192 124 399 311 604 207 313 292 575 100 156 108 Core 143 | 6 . . . . . . . . . . . . . . . . . . . . . 66 71 Treads 4283 | . . 187 347 258 377 762 493 264 163 603 379 192 124 97 . . . . . . . . 37 Legs 3037 | 65 115 75 . . . . . . . . . . . 290 311 604 207 313 292 575 100 90 . Wheels 12 | . . . . . . . . . . . . . . 12 . . . . . . . . . Hover . | . . . . . . . . . . . . . . . . . . . . . . . . Flight . | . . . . . . . . . . . . . . . . . . . . . . . . Fastest Speed 50 | 50 120 145 145 153 153 153 157 157 157 155 158 158 159 115 124 120 120 120 114 114 115 50 50 Average Speed 142 | 114 166 157 146 153 153 153 157 157 157 157 158 158 159 134 124 142 121 125 116 117 115 89 87 Slowest Speed 330 | 120 190 190 225 153 153 197 157 157 157 211 158 158 159 260 124 330 126 196 190 186 115 183 160 Overloaded Moves . | . . . . . . . . . . . . . . . . . . . . . . . . Propulsion Burnouts . | . . . . . . . . . . . . . . . . . . . . . . . . Robots Hopped 2 | . . . . . . . . . . . . . . . . . . . . 2 . . . Potential Cave-ins 16 | . . . . . . . . . . . . . . . . . . . . 16 . . . Cave-ins Triggered . | . . . . . . . . . . . . . . . . . . . . . . . . Exploration Rate (%) 28 | 5 25 32 37 42 32 41 18 36 6 65 14 30 4 54 9 49 8 44 10 70 3 35 3 Regions Visited 23 Branch Regions . Pre-discovered Areas . | . . . . . . . . . . . . . . . . . . . . . . . . Known Exits Taken 10 | . . . 1 . 1 . 1 . 1 . 1 . 1 . 1 . 1 . 1 . 1 . . Unknown Exits Taken 3 | 1 1 1 . . . . . . . . . . . . . . . . . . . . . Scrap Searched . | . . . . . . . . . . . . . . . . . . . . . . . . Spaces Dug 9 | . . . . . . . . . . . 1 . . . . . . . . 8 . . . Terrain Destroyed 367 | . . . . 27 . 35 4 12 1 . 30 . 57 115 18 15 . 9 2 41 . 1 . Melee . | . . . . . . . . . . . . . . . . . . . . . . . . Projectile 104 | . . . . . . 3 4 . 1 . 7 . 2 8 18 14 . 3 2 41 . 1 . AOE 263 | . . . . 27 . 32 . 12 . . 23 . 55 107 . 1 . 6 . . . . . Terrain Rammed . | . . . . . . . . . . . . . . . . . . . . . . . . Walls Destroyed . | . . . . . . . . . . . . . . . . . . . . . . . . Machines Disabled . | . . . . . . . . . . . . . . . . . . . . . . . . Actions | -11 -10 -9 -8 -8 -8 -8 -7 -7 -7 -7 -6 -6 -5 -5 -4 -4 -3 -3 -2 -2 -1 -1 -1 --------- Run | Yrd Mat Mat Mat Gar Mat Gar Fac Gar Fac Gar Fac Gar Fac Gar Fac Gar Res Gar Res Gar Acc Gar Acc Total 9441 | 102 156 380 459 282 517 917 610 307 181 849 529 207 156 544 395 744 222 371 364 689 99 210 151 Wait 757 | . 7 71 48 . 80 52 74 18 6 126 117 2 21 8 36 14 2 18 37 11 . 3 6 Move 7439 | 70 114 261 346 256 376 760 492 262 162 601 378 190 123 397 311 602 206 311 291 569 99 154 108 Hop 2 | . . . . . . . . . . . . . . . . . . . . 2 . . . Pick Up 128 | 7 7 12 5 3 6 8 8 4 2 14 3 3 . 11 5 12 2 2 7 6 . 1 . Fast Attach 78 | 7 . 2 2 . 1 4 . . . 1 . . . 10 . 23 2 2 7 8 . 3 6 Attach 81 | . . 4 3 . . 5 2 1 1 8 3 . 3 6 6 13 2 6 5 4 . 9 . Detach 6 | . . . . . . . . . . . . . . 1 . 1 1 . 1 1 . 1 . Swap 131 | . 5 1 5 4 4 9 6 7 3 19 5 4 5 12 6 14 2 6 4 4 . 6 . Drop 112 | . 9 6 4 3 9 7 4 2 2 11 4 6 . 11 1 6 4 7 1 10 . 4 1 Fire 582 | 18 14 23 44 7 41 67 19 12 5 57 19 2 4 41 26 51 1 17 11 67 . 28 8 Melee . | . . . . . . . . . . . . . . . . . . . . . . . . Ram . | . . . . . . . . . . . . . . . . . . . . . . . . Kick . | . . . . . . . . . . . . . . . . . . . . . . . . Crush 28 | . . . 2 . . 4 . . . . . . . . . . . . . . . . 22 Escape Stasis 11 | . . . . . . . . . . . . . . . . 6 . . . 5 . . . Rewire 63 | . . . . . . 1 . . . 4 . . . 47 4 2 . 2 . 2 . 1 . Trap 2 | . . . . . . . 1 1 . . . . . . . . . . . . . . . Miscellaneous 21 | . . . . 9 . . 4 . . 8 . . . . . . . . . . . . . Route ------- -11/Scrapyard -10/Materials -9/Materials -8/Materials -8/Garrison -8/Materials -8/Garrison -7/Factory (discovered 2 exits: [*Low] / Gar) -7/Garrison (discovered 4 exits: *Fac x4) -7/Factory -7/Garrison -6/Factory (discovered 2 exits: *Low / Gar) -6/Garrison -5/Factory -5/Garrison -4/Factory -4/Garrison -3/Research -3/Garrison -2/Research (discovered 2 exits: *Acc / Gar) -2/Garrison (discovered 3 exits: *Acc x3) -1/Access -1/Garrison -1/Access History --------- Turn | Location | Event 4 | -11/Scrapyard | Discovered new exit (range 16) 146 | -11/Scrapyard | Entered Materials 308 | -10/Materials | Build established: Mutant 369 | -10/Materials | Discovered new exit (range 9) 393 | -10/Materials | Entered another Materials area 393 | -9/Materials | Evolved 2 slots: Utility x1, Weapon x1 675 | -9/Materials | Repaired Autogun 709 | -9/Materials | Repaired Autogun 921 | -9/Materials | Discovered new exit (range 15) 961 | -9/Materials | Entered another Materials area 961 | -8/Materials | Evolved 2 slots: Propulsion x1, Utility x1 1006 | -8/Materials | Build established: Gunner 1376 | -8/Materials | Repaired Adv. Treads 1654 | -8/Materials | Identified exit to Garrison 1655 | -8/Materials | Entered Garrison 1675 | -8/Garrison | Triggered checkpoint 1763 | -8/Garrison | Triggered checkpoint 1778 | -8/Garrison | Build established: Tank 1887 | -8/Garrison | Triggered checkpoint 1929 | -8/Garrison | Installed Relay Interface Framework 2005 | -8/Garrison | Discovered new exit (range 13) 2101 | -8/Garrison | Entered Materials 2468 | -8/Materials | Repaired Hrd. Medium Armor Plating 2773 | -8/Materials | Build established: Scientist-Tank 2809 | -8/Materials | Garrison activated, responded to threat 2879 | -8/Materials | Identified exit to Garrison 2881 | -8/Materials | Entered Garrison 3007 | -8/Garrison | Triggered checkpoint 3047 | -8/Garrison | Garrison Relay disabled 3175 | -8/Garrison | Triggered checkpoint 3271 | -8/Garrison | Triggered checkpoint 3752 | -8/Garrison | Build established: Tank 3952 | -8/Garrison | Garrison Relay disabled 4138 | -8/Garrison | Destroyed 7 combat bots 4206 | -8/Garrison | Expanded RIF knowledge: Structural Interface 4320 | -8/Garrison | Discovered new exit (range 15) 4346 | -8/Garrison | Entered Factory 4346 | -7/Factory | Evolved 2 slots: Propulsion x1, Utility x1 4709 | -7/Factory | Discovered new exit (range 16) 4760 | -7/Factory | Build established: Gunner 4831 | -7/Factory | Fabricated M-28 Smith (x1) 5199 | -7/Factory | Identified exit to Garrison 5285 | -7/Factory | Entered Garrison 5296 | -7/Garrison | Discovered new exit (range 75) 5296 | -7/Garrison | Discovered new exit (range 81) 5296 | -7/Garrison | Discovered new exit (range 91) 5296 | -7/Garrison | Discovered new exit (range 33) 5409 | -7/Garrison | Triggered checkpoint 5414 | -7/Garrison | Triggered checkpoint 5611 | -7/Garrison | Triggered checkpoint 5641 | -7/Garrison | Expanded RIF knowledge: Command Fork 5663 | -7/Garrison | Garrison Relay disabled 5763 | -7/Garrison | Entered Factory 5763 | -7/Factory | Accompanied by 2 allies 6047 | -7/Factory | Identified exit to Garrison 6048 | -7/Factory | Entered Garrison 6048 | -7/Garrison | Accompanied by 2 allies 6066 | -7/Garrison | Learned Factory security intel 6122 | -7/Garrison | Triggered checkpoint 6168 | -7/Garrison | Garrison Relay disabled 6245 | -7/Garrison | P-60 Hacker assimilated allied Trooper 4a 6464 | -7/Garrison | Build established: Bothacker-Gunner 7016 | -7/Garrison | Triggered checkpoint 7056 | -7/Garrison | Triggered checkpoint 7153 | -7/Garrison | Build established: Gunner 7184 | -7/Garrison | Expanded RIF knowledge: Program Shield 7238 | -7/Garrison | Destroyed 8 combat bots 7247 | -7/Garrison | Lost 3 parts (1u2w) 7360 | -7/Garrison | Discovered new exit (range 8) 7380 | -7/Garrison | Entered Factory 7380 | -6/Factory | Accompanied by 2 allies 7380 | -6/Factory | Evolved 2 slots: Utility x2 7568 | -6/Factory | Spotted B-75 Beast 7699 | -6/Factory | Discovered new exit (range 9) 7710 | -6/Factory | Identified exit to Lower Caves 8001 | -6/Factory | Fabricated M-28 Smith (x1) 8167 | -6/Factory | Identified exit to Garrison 8169 | -6/Factory | Entered Garrison 8169 | -6/Garrison | Accompanied by 3 allies 8225 | -6/Garrison | Expanded RIF knowledge: Command Fork 8295 | -6/Garrison | Triggered checkpoint 8377 | -6/Garrison | Discovered new exit (range 15) 8471 | -6/Garrison | Identified exit to Factory 8486 | -6/Garrison | Entered Factory 8486 | -5/Factory | Accompanied by 3 allies 8486 | -5/Factory | Evolved 2 slots: Propulsion x1, Utility x1 8723 | -5/Factory | Identified exit to Garrison 8725 | -5/Factory | Entered Garrison 8725 | -5/Garrison | Accompanied by 5 allies 8749 | -5/Garrison | Triggered checkpoint 8774 | -5/Garrison | Lost 5 allies 8782 | -5/Garrison | Destroyed 7 combat bots 8829 | -5/Garrison | Garrison Relay disabled 9000 | -5/Garrison | Lost 14 parts (1p5n4u4w) 9103 | -5/Garrison | Assembled breached garrison interior 9276 | -5/Garrison | Discovered new exit (range 11) 9404 | -5/Garrison | Garrison Relay disabled 9446 | -5/Garrison | Core integrity fell below 50% 9455 | -5/Garrison | Identified exit to Factory 9464 | -5/Garrison | Entered Factory 9464 | -4/Factory | Accompanied by 7 allies 9464 | -4/Factory | Evolved 2 slots: Power x1, Propulsion x1 9664 | -4/Factory | P-70 Sage assimilated allied Soldier 6d 9668 | -4/Factory | P-70 Sage assimilated allied Fighter 6b 9720 | -4/Factory | Build established: Bothacker-Gunner 9815 | -4/Factory | Lost 3 allies 9868 | -4/Factory | Spotted B-86 Titan 9903 | -4/Factory | Destroyed B-86 Titan 9933 | -4/Factory | Lost 4 parts (1p1n2u) 9937 | -4/Factory | Identified exit to Garrison 9991 | -4/Factory | Entered Garrison 10045 | -4/Garrison | Triggered checkpoint 10165 | -4/Garrison | Triggered checkpoint 10274 | -4/Garrison | Triggered checkpoint 10308 | -4/Garrison | Spotted B-86 Titan 10422 | -4/Garrison | Destroyed B-86 Titan 10477 | -4/Garrison | Lost 23 parts (6p7n5u5w) 10681 | -4/Garrison | Garrison Relay disabled 10888 | -4/Garrison | Discovered new exit (range 9) 10934 | -4/Garrison | Expanded RIF knowledge: Command Fork 10959 | -4/Garrison | Triggered checkpoint 11012 | -4/Garrison | Garrison Relay disabled 11070 | -4/Garrison | Build established: Scavenger-Gunner 11090 | -4/Garrison | Identified exit to Research 11095 | -4/Garrison | Entered Research 11095 | -3/Research | Accompanied by 1 ally 11095 | -3/Research | Evolved 2 slots: Utility x1, Weapon x1 11358 | -3/Research | Identified exit to Garrison 11359 | -3/Research | Entered Garrison 11559 | -3/Garrison | Triggered checkpoint 11602 | -3/Garrison | Garrison Relay disabled 11739 | -3/Garrison | Spotted B-86 Titan 11761 | -3/Garrison | Triggered checkpoint 11779 | -3/Garrison | Triggered checkpoint 11788 | -3/Garrison | Triggered checkpoint 11830 | -3/Garrison | Discovered new exit (range 12) 11842 | -3/Garrison | Identified exit to Research 11845 | -3/Garrison | Entered Research 11845 | -2/Research | Evolved 2 slots: Utility x2 11852 | -2/Research | Lost 12 parts (2p5n1u4w) 11856 | -2/Research | Found Prototype Launcher 11856 | -2/Research | Identified Tesla Bomb Launcher 11907 | -2/Research | Discovered new exit (range 4) 11910 | -2/Research | Identified exit to Access 12004 | -2/Research | Found Gamma Bomb Array 12242 | -2/Research | Spotted B-90 Cyclops 12257 | -2/Research | Hijacked Cyclops 9a control node with streamctrl_high 12278 | -2/Research | Identified exit to Garrison 12279 | -2/Research | Entered Garrison 12346 | -2/Garrison | Garrison Relay disabled 12385 | -2/Garrison | Spotted B-90 Cyclops 12569 | -2/Garrison | Discovered exit to Access (range 11) 12653 | -2/Garrison | Triggered checkpoint 12668 | -2/Garrison | Garrison Relay disabled 12794 | -2/Garrison | Triggered checkpoint 12845 | -2/Garrison | P-80 Master assimilated allied Enforcer 9b 12876 | -2/Garrison | Garrison Relay disabled 12917 | -2/Garrison | Expanded RIF knowledge: Threat Obfuscation 13002 | -2/Garrison | Discovered exit to Access (range 14) 13135 | -2/Garrison | Discovered exit to Access (range 12) 13146 | -2/Garrison | Expanded RIF knowledge: Signal Jamming 13157 | -2/Garrison | Triggered checkpoint 13174 | -2/Garrison | Entered Access 13174 | -1/Access | Evolved 2 slots: Utility x2 13221 | -1/Access | Build established: Botlord-Gunner 13287 | -1/Access | Identified exit to Garrison 13288 | -1/Access | Entered Garrison 13367 | -1/Garrison | Rescued a captive Derelict 13382 | -1/Garrison | Triggered checkpoint 13396 | -1/Garrison | Spotted B-99 Colossus 13437 | -1/Garrison | Lost 6 allies 13479 | -1/Garrison | Core integrity fell below 50% 13494 | -1/Garrison | Lost 4 allies 13498 | -1/Garrison | Discovered new exit (range 10) 13503 | -1/Garrison | Entered Access 13509 | -1/Access | Lost 30 parts (4p5n12u9w) 13657 | -1/Access | Core integrity fell below 20% 13665 | -1/Access | Destroyed by H-88 Terminator with KE Penetrator Last Messages --------------- 13645_ G-73 Enforcer unfolds itself. 13646_ R-10 Processor collects Welding Torch. 13647_ Penetrated by Slug. 13647_ Adv. Heavy Siege Treads destroyed. 13647_ Slug penetrates Wall. 13647_ Quantum Reactor destroyed. 13648_ Dropped Adv. Heavy Siege Treads. 13650_ Penetrated by Slug. 13650_ R-10 Processor destroyed. 13652_ Penetrated by Slug. 13653_ Slug penetrates H-88 Terminator. 13653_ Penetrated by Slug. 13655_ Slug penetrates Wall. 13656_ Penetrated by Slug. 13658_ Slug penetrates Wall. 13658_ M-36 Artificer repairs H-88 Terminator. 13659_ Penetrated by Slug. 13661_ K-01 Serf collects debris. 13661_ Slug penetrates Wall. 13661_ Penetrated by Slug. Map ----- +----------------------------------------------------+ | ???????????????????????????# #??????? | | ???????????????????????????# #??????? | | ???????????????????????????# #??????? | | ???????????????????????????# #??????? | | ???????????????????????????# #??????? | | ???????????????????????????# ########??????? | | ???????????????????????????# #?????????????? | | ???????????????????????????# #?????????????? | | ???????????????????????????# ##############? | | ???????????????????????????# # #? | | ???????????????????????????# # #? | | ???????????????????????????# # #? | | ???????????????????????????# # #? | | ???????????????? ?????????# # #? | | ?????????????? ????????# # % ! #? | | ?????????????? t ???????# +[== ! #? | | ????????????? ???????# # %[ ! #? | | ????????????? ??????# # = #? | | ?????????????k ####### # #? | | ?????????????# u # #? | | ?????????????# % # #? | | ?????????????# h %%%##############? | | ?????????????# %% h=!|==%[[=!%*=! | | ?????????????# m =##+#######?? | | ?????????????# g s # ??????? | | ?????????????# k @ g # ????? | | ?????????????# ##########;#####"# ??? | | ?????????????? ??????# # "" "" #? | | ?????????????????????????# # ""T"" #? | | ?????????????????????????# # """ #? | | ?????????????????????????# # #? | | ?????????????????????????# " # ? ?? | | ?????????????????????????# """" #####????##? | | ?????????????????????????#""""" #??????????? | | ?????????????????????????# """"" #??????????? | | ?????????????????????????? """" #??????????? | | ??????????????????????????? " #??????????? | | ???????????????????????????? #??????????? | | ???????????????????????????? #??????????? | | ????????????????????????????###########??????????? | | ?????????????????????????????????????????????????? | | ?????????????????????????????????????????????????? | | ?????????????????????????????????????????????????? | | ?????????????????????????????????????????????????? | | ?????????????????????????????????????????????????? | | ?????????????????????????????????????????????????? | | ?????????????????????????????????????????????????? | | ?????????????????????????????????????????????????? | | ?????????????????????????????????????????????????? | | ?????????????????????????????????????????????????? | +----------------------------------------------------+ Best States ------------- Heat Dissipation 115 Energy Generation 45 Energy Capacity 555 Matter Stores 300 Matter Capacity 300 Sight Range 16 Robot Scan Range 15 Terrain Scan Density 10 Jamming Range 12 Armor Coverage 600 Phase Shifting 15 Evasion (%) 70 Targeting Accuracy 16 Core Analysis 9 Recoil Reduction 6 Relay Coupler Types 3 Relay Coupler Value 44 Authchip Count 2 Item Schematics ----------------- Adv. Treads | -8/Materials | Scanalyzed Autogun | -8/Materials | Scanalyzed Imp. Grenade Launcher | -8/Materials | Scanalyzed Hcp. Storage Unit | -8/Materials | Hacked Robot Schematics ------------------ M-28 Smith | -8/Materials | Hacked Fabricated ------------ M-28 Smith | x1 | -7/Factory M-28 Smith | x1 | -6/Factory Repaired ---------- Autogun | 28% | -9/Materials Autogun | 28% | -9/Materials Adv. Treads | 25% | -8/Materials Hrd. Medium Armor Plating | 7% | -8/Materials Studied --------- Autogun | -8/Materials | Hacked Minigun | -8/Materials | Hacked Adv. Treads | -8/Materials | Hacked Arm. Treads | -8/Materials | Hacked Plasma Cutter | -8/Materials | Hacked Nuclear Core | -8/Materials | Hacked Alien Tech Used ----------------- None Achievements -------------- Physics Protects Challenges ------------ None Game ------ Seed FlakDisposableDrivehammer Manual? 0 Play Time 01:44:43 Cumulative 266.1 hours Start 2025.11.06 @ 11:49:13 End 2025.11.06 @ 13:34:46 Sessions 1 Manual Loads 0 Difficulty Rogue Special Mode None Game No. 585 Rogue 585 Adventurer 0 Explorer 0 Win Type - Total 19 Types 13/0/4/1/1/0/0/0/0/0 Lore% 80 Gallery% 71 Achievement% 48 Wizard Run 0 Options --------- Layout 0 ASCII 0 Keyboard 0 Movement Numpad Keybinds 0 Fullscreen 2 Font 18/Terminus Map View 76x50 Zoom Use 0% Tactical HUD 1 Map Filters NONE Filters SATURATION(100) Steam 1 RUN: 7d5fe790-4697-47e3-9ccb-4f1038b5e537